bitfinex/quotes_ETHUSD_20241004
["timestamp","ask_amount","ask_price","bid_price","bid_amount"]
[1728049691030,2.16789599,2389.6,2389.5,4.18497]
[1728049692971,8.36773,2390.2,2389.5,4.18497]
[1728049693174,5.020753,2390.1,2389.5,4.18497]
[1728049693347,5.020753,2390.1,2389.5,4.18488]
[1728049693348,4.18419,2390.0,2389.5,4.18488]
[1728049693747,4.18419,2390.0,2389.4,4.18514]
[1728049694087,0.836773,2390.1,2389.6,0.08945697]
[1728049694278,4.18389,2390.2,2389.7,4.1846]
[1728049694481,4.18355,2390.4,2389.9,4.18413]
[1728049695143,4.18374,2390.3,2390.0,0.08889122]
[1728049695455,4.18374,2390.3,2389.7,8.36905]
[1728049695667,4.18378,2390.2,2390.1,0.08874981]
[1728049695853,4.18378,2390.2,2389.7,4.18451]
[1728049696053,4.18378,2390.2,2390.1,0.08874981]
[1728049696362,4.85157645,2390.5,2389.3,7.1852]
[1728049696717,8.36906,2389.8,2389.3,4.1852]
[1728049696886,4.18452,2389.8,2389.3,4.1852]
[1728049697072,8.36911,2389.8,2389.3,4.1852]
[1728049697249,4.18452,2389.8,2389.3,4.1852]
[1728049697780,4.18429,2389.9,2389.4,4.18505]
[1728049697939,4.18448,2389.8,2389.4,4.18505]
[1728049698136,4.18429,2389.9,2389.4,4.18505]
[1728049698137,4.18398,2390.1,2389.6,4.94745]
[1728049698372,7.31,2390.2,2389.5,0.7628]
[1728049698542,4.18414,2390.0,2389.5,4.18488]
[1728049698757,4.18414,2390.0,2389.6,0.7628]
[1728049698957,4.18414,2390.0,2389.7,0.7628]
[1728049699357,1.567794,2390.0,2389.7,0.7628]
[1728049699555,4.18537,2389.3,2389.0,0.7628]
[1728049699757,4.18557,2389.2,2389.0,0.7628]
[1728049700257,4.18567,2389.1,2389.0,0.7628]
[1728049700683,4.18535,2389.3,2389.0,0.7628]
[1728049700885,7.18517,2389.4,2389.0,4.94864]
[1728049701091,7.18517,2389.4,2389.0,0.7628]
[1728049701092,4.18534,2389.3,2389.0,0.7628]
[1728049702071,4.18558,2389.2,2389.0,0.7628]
[1728049702267,5.402702,2389.4,2389.0,0.7628]
[1728049702468,4.1854,2389.3,2389.0,0.7628]
[1728049702906,4.18554,2389.2,2389.0,0.7628]
[1728049703313,4.18597,2389.0,2388.3,0.7728]
[1728049703524,4.1869,2388.4,2388.3,0.7728]
[1728049703683,4.18707,2388.3,2388.2,0.00466628]
[1728049704247,5.443143,2388.3,2388.2,0.00466628]
[1728049704772,4.1869,2388.4,2388.2,0.00466628]
[1728049705472,3.0,2388.9,2388.3,0.8096]
[1728049705702,4.18663,2388.6,2388.3,0.8096]
[1728049705906,4.1862,2388.8,2388.3,4.99659]
[1728049706109,4.18648,2388.7,2388.3,0.8096]
[1728049706774,4.1862,2388.8,2388.3,4.18705]
[1728049707142,4.1862,2388.8,2388.5,0.7674]
[1728049707413,4.18607,2388.9,2388.5,0.7674]
[1728049708015,4.18607,2388.9,2388.5,4.95411]
[1728049708222,4.18607,2388.9,2388.5,0.7674]
[1728049708223,4.18623,2388.8,2388.5,0.7674]
[1728049708542,4.18607,2388.9,2388.5,0.7674]
[1728049708686,4.18585,2389.0,2388.6,0.774]
[1728049708881,8.37161,2389.1,2388.6,0.49608]
[1728049709081,4.18602,2388.9,2388.8,0.774]
[1728049709502,4.84235395,2388.9,2388.8,0.774]
[1728049710307,4.18624,2388.8,2388.4,0.7555]
[1728049710488,4.18637,2388.7,2388.4,0.7555]
[1728049710819,4.18624,2388.8,2388.5,0.09103519]
[1728049711018,4.18624,2388.8,2388.6,0.7911]
[1728049711222,4.18637,2388.7,2388.6,0.7911]
[1728049711437,5.0892644,2388.7,2388.6,0.0908936]
[1728049711785,4.18672,2388.5,2388.2,0.79796628]
[1728049711986,4.18707,2388.3,2388.2,0.79796628]
[1728049712187,4.18672,2388.5,2388.3,0.09131839]
[1728049712188,8.37359,2388.5,2388.3,0.09131839]
[1728049712390,4.18698,2388.4,2388.2,0.79796628]
[1728049713226,4.18707,2388.3,2388.2,0.00466628]
[1728049714697,4.18698,2388.4,2388.2,0.00466628]
[1728049715208,0.9028944,2388.7,2388.2,0.00466628]
[1728049715209,4.18707,2388.3,2388.2,0.00466628]
[1728049716125,4.1869,2388.4,2388.2,0.00466628]
[1728049716331,4.18707,2388.3,2388.2,0.00466628]
[1728049716534,5.024467,2388.3,2388.2,0.00466628]
[1728049716901,4.18707,2388.3,2388.2,0.00466628]
[1728049720253,4.94137,2388.3,2388.2,0.00466628]
[1728049723346,4.18707,2388.3,2388.2,0.00466628]
[1728049724569,4.95337,2388.3,2388.2,0.00466628]
[1728049725775,5.39142099,2388.3,2388.2,0.00466628]
[1728049725976,6.83441073,2388.3,2388.2,0.00466628]
[1728049726328,7.38441073,2388.3,2388.2,0.00466628]
[1728049727637,6.83441073,2388.3,2388.2,0.00466628]
[1728049727997,4.62512099,2388.3,2388.2,0.00466628]
[1728049730234,4.62512099,2388.3,2388.2,0.09629776]
[1728049730648,4.62512099,2388.3,2388.2,0.00466628]
[1728049731286,0.43805099,2388.3,2388.2,0.83136628]
[1728049731487,0.43805099,2388.3,2388.2,1.42489139]
[1728049731851,4.62512099,2388.3,2388.2,0.83136628]
[1728049732049,4.62512099,2388.3,2388.2,0.92299776]
[1728049732249,4.62512099,2388.3,2388.2,0.83136628]
[1728049732459,4.62512099,2388.3,2388.2,0.92299776]
[1728049733593,0.43805099,2388.3,2388.2,0.83136628]
[1728049733886,0.43805099,2388.3,2388.2,5.52050191]
[1728049734060,0.43805099,2388.3,2388.2,5.61213339]
[1728049734257,4.18653,2388.7,2388.3,4.18701]
[1728049734596,4.62455122,2388.7,2388.4,0.8038]
[1728049734894,4.18655,2388.6,2388.5,0.8038]
[1728049735391,4.18655,2388.6,2388.5,0.09120665]
[1728049735562,4.18655,2388.6,2388.2,0.00466628]
[1728049735767,9.85954645,2388.3,2388.2,0.00466628]
[1728049735966,13.40954645,2388.3,2388.2,0.00466628]
[1728049736161,16.23003869,2388.3,2388.2,0.00466628]
[1728049736874,15.27423761,2388.3,2388.2,0.00466628]
[1728049738592,14.72423761,2388.3,2388.2,0.00466628]
[1728049739359,9.05176116,2388.3,2388.2,0.00466628]
[1728049739581,4.18707,2388.3,2388.2,0.76546628]
[1728049740408,4.18707,2388.3,2388.2,0.09327401]
[1728049740569,4.96837,2388.3,2388.2,0.09327401]
[1728049740899,4.96837,2388.3,2388.2,0.80136628]
[1728049740900,4.18707,2388.3,2388.2,0.80136628]
[1728049741199,4.18656,2388.6,2388.2,0.80136628]
[1728049741416,0.43802122,2388.7,2388.2,0.80136628]
[1728049741417,4.18707,2388.3,2388.2,0.88997401]
[1728049741582,4.18664,2388.6,2388.2,0.80136628]
[1728049741776,4.18681,2388.5,2388.3,0.0884661]
[1728049741988,4.18681,2388.5,2388.2,0.80136628]
[1728049742216,4.18707,2388.3,2388.2,0.80136628]
[1728049742397,4.18692,2388.4,2388.2,0.80136628]
[1728049742711,4.18673,2388.5,2388.2,0.80136628]
[1728049743088,8.37359,2388.5,2388.2,0.80136628]
[1728049743288,4.18673,2388.5,2388.3,0.0884661]
[1728049743678,4.18673,2388.5,2388.2,0.80136628]
[1728049743679,4.18699,2388.4,2388.2,0.80136628]
[1728049744404,4.18669,2388.6,2388.2,0.80136628]
[1728049744712,4.18638,2388.7,2388.4,0.797]
[1728049745218,4.84250395,2388.9,2388.4,0.797]
[1728049745219,4.84250395,2388.9,2388.4,4.98382]
[1728049745388,0.65633395,2388.9,2388.7,4.18637]
[1728049745612,4.84240395,2388.9,2388.6,0.797]
[1728049745992,0.65633395,2388.9,2388.6,0.797]
[1728049746214,0.65633395,2388.9,2388.8,4.1862]
[1728049746520,0.65633395,2388.9,2388.8,4.9814]
[1728049746736,0.65633395,2388.9,2388.8,5.89816]
[1728049747325,2.17741937,2389.9,2388.8,5.10296]
[1728049747326,6.36183937,2389.9,2388.8,5.10296]
[1728049747523,8.1166,2390.0,2389.2,4.18538]
[1728049747524,8.36938,2389.7,2389.2,4.18538]
[1728049747676,0.65617556,2389.5,2389.3,0.7893]
[1728049747880,0.65617556,2389.5,2389.4,4.18515]
[1728049748125,0.65617556,2389.5,2389.4,5.00215]
[1728049748576,4.18351,2390.4,2389.3,4.18515]
[1728049748577,7.78456729,2390.3,2389.3,4.18515]
[1728049748782,8.36772,2390.2,2389.7,4.98041]
[1728049749125,0.65599161,2390.1,2389.8,4.18444]
[1728049749282,0.65599161,2390.1,2389.7,4.98041]
[1728049750100,9.02395161,2390.1,2389.7,0.7958]
[1728049750277,0.65599161,2390.1,2389.7,0.7958]
[1728049750479,0.65599161,2390.1,2389.7,4.98032]
[1728049750731,0.65599161,2390.1,2389.8,4.18443]
[1728049751226,0.65599161,2390.1,2389.8,8.36877]
[1728049751597,0.65599161,2390.1,2389.7,4.98041]
[1728049751799,4.83999161,2390.1,2389.7,0.7958]
[1728049751994,4.18411,2390.0,2389.7,0.7958]
[1728049752339,5.56780615,2390.1,2389.4,0.8231]
[1728049752340,4.18445,2389.8,2389.4,0.8231]
[1728049752693,4.18428,2389.9,2389.4,0.8231]
[1728049752898,4.18462,2389.7,2389.4,0.8231]
[1728049754116,4.18497,2389.5,2389.1,0.78]
[1728049755155,4.18497,2389.5,2389.2,0.08683284]
[1728049755464,8.37005,2389.5,2389.2,0.08683284]
[1728049755754,4.18497,2389.5,2389.2,0.08683284]
[1728049756051,4.18474,2389.7,2389.3,4.1853]
[1728049756251,4.18437,2389.9,2389.4,4.18515]
[1728049756425,4.18437,2389.9,2389.5,0.7887]
[1728049756618,4.18466,2389.7,2389.5,0.7887]
[1728049756815,4.18466,2389.7,2389.6,0.0862669]
[1728049757433,4.18509,2389.5,2389.3,0.8245]
[1728049757844,4.18509,2389.5,2389.4,0.08654985]
[1728049758130,4.18481,2389.6,2389.4,0.08654985]
[1728049758356,5.102418,2389.6,2389.4,0.08654985]
[1728049758658,4.18497,2389.5,2389.4,0.08654985]
[1728049758861,4.18481,2389.6,2389.4,0.08654985]
[1728049759044,4.18497,2389.5,2389.0,4.96457]
[1728049759548,4.18497,2389.5,2389.0,4.96456]
[1728049759757,4.18518,2389.4,2389.0,4.96456]
[1728049759929,4.18518,2389.4,2389.1,0.08697436]
[1728049760137,4.18441,2389.9,2389.2,0.775]
[1728049760323,4.18445,2389.8,2389.4,4.18514]
[1728049760657,14.49413,2390.0,2389.5,0.08640837]
[1728049760869,4.18428,2389.9,2389.6,0.775]
[1728049761050,4.18454,2389.8,2389.6,0.775]
[1728049761356,4.18506,2389.5,2389.3,0.7756]
[1728049761565,4.18459,2389.8,2389.3,0.7756]
[1728049761927,4.18542,2389.3,2389.0,0.7566]
[1728049762129,4.18554,2389.2,2389.0,0.7566]
[1728049762487,4.18567,2389.1,2388.8,0.823]
[1728049762789,4.18602,2388.9,2388.8,0.823]
[1728049763069,4.18638,2388.7,2388.4,0.761]
[1728049763275,4.18622,2388.8,2388.4,4.94789]
[1728049763573,4.18618,2388.9,2388.4,0.761]
[1728049763879,4.18664,2388.6,2388.4,0.761]
[1728049764168,4.18657,2388.6,2388.4,0.761]
[1728049764328,4.18617,2388.9,2388.4,0.761]
[1728049764525,4.18617,2388.9,2388.4,4.9478]
[1728049764743,4.1862,2388.8,2388.4,0.761]
[1728049765354,4.18617,2388.9,2388.4,5.86181263]
[1728049765530,4.18617,2388.9,2388.5,4.18665]
[1728049765730,4.18606,2388.9,2388.5,4.18665]
[1728049765935,4.18606,2388.9,2388.4,10.04859263]
[1728049766136,4.18606,2388.9,2388.4,5.86174263]
[1728049766527,4.1865,2388.7,2388.4,0.761]
[1728049766867,1.621496,2389.2,2388.4,0.761]
[1728049766868,4.1861,2388.9,2388.5,4.18669]
[1728049767537,4.1861,2388.9,2388.4,0.761]
[1728049767741,4.18672,2388.6,2388.4,0.761]
[1728049767965,4.1864,2388.7,2388.4,0.761]
[1728049768340,4.18622,2388.8,2388.4,0.761]
[1728049768543,4.18622,2388.8,2388.4,4.9479]
[1728049769491,4.18622,2388.8,2388.4,0.761]
[1728049769849,4.18646,2388.7,2388.4,0.761]
[1728049770055,4.18622,2388.8,2388.4,0.761]
[1728049770286,8.37253,2388.8,2388.4,0.761]
[1728049770643,4.18637,2388.7,2388.4,0.761]
[1728049770845,4.18655,2388.6,2388.4,0.761]
[1728049771143,4.18707,2388.3,2388.2,0.81206628]
[1728049771349,4.18707,2388.3,2388.2,0.00466628]
[1728049771350,4.99927,2388.3,2388.2,0.00466628]
[1728049771575,4.99927,2388.3,2388.2,0.0898133]
[1728049771768,4.99927,2388.3,2388.2,0.00466628]
[1728049771769,5.917889,2388.3,2388.2,0.00466628]
[1728049772183,5.105689,2388.3,2388.2,0.00466628]
[1728049772495,4.18692,2388.4,2388.2,0.00466628]
[1728049772779,4.18668,2388.6,2388.2,0.00466628]
[1728049772980,4.99143,2388.8,2388.3,0.0851833]
[1728049772981,4.18674,2388.5,2388.3,0.0851833]
[1728049773181,4.1869,2388.4,2388.3,0.0851833]
[1728049773394,4.1869,2388.4,2388.2,0.00466628]
[1728049773395,4.18707,2388.3,2388.2,0.00466628]
[1728049773571,5.024467,2388.3,2388.2,0.00466628]
[1728049774098,4.18699,2388.4,2388.2,0.00466628]
[1728049774262,4.18707,2388.3,2388.2,0.0899912]
[1728049774462,4.18707,2388.3,2388.2,0.00466628]
[1728049774663,4.97547,2388.3,2388.2,0.0899912]
[1728049774861,4.97547,2388.3,2388.2,0.00466628]
[1728049775075,5.891716,2388.3,2388.2,0.00466628]
[1728049775483,5.891716,2388.3,2388.2,0.0899912]
[1728049775802,5.891716,2388.3,2388.2,0.00466628]
[1728049776001,5.891716,2388.3,2388.2,0.0899912]
[1728049776205,5.891716,2388.3,2388.2,0.00466628]
[1728049776709,5.891716,2388.3,2388.2,0.0899912]
[1728049776918,5.103316,2388.3,2388.2,0.00466628]
[1728049779014,3.0,2388.7,2388.2,0.00466628]
[1728049779221,4.18672,2388.5,2388.3,0.0851833]
[1728049779374,4.18672,2388.5,2388.2,0.00466628]
[1728049779715,4.18672,2388.5,2388.3,0.0851833]
[1728049780371,4.18696,2388.4,2388.2,0.00466628]
[1728049781514,8.37398,2388.4,2388.2,0.00466628]
[1728049781672,4.18696,2388.4,2388.2,0.00466628]
[1728049783393,4.18707,2388.3,2388.2,0.00466628]
[1728049784884,5.024263,2388.4,2388.2,0.00466628]
[1728049784885,5.024293,2388.4,2388.2,0.00466628]
[1728049785325,7.18662,2388.6,2388.2,0.00466628]
[1728049785627,3.0,2388.6,2388.2,0.00466628]
[1728049785923,4.18682,2388.5,2388.2,0.00466628]
[1728049786314,7.18662,2388.6,2388.2,0.00466628]
[1728049786512,4.18674,2388.5,2388.2,0.00466628]
[1728049786683,1.137336,2388.5,2388.2,0.00466628]
[1728049787626,7.31,2388.9,2388.3,0.8064]
[1728049787830,11.49604,2388.9,2388.3,0.8064]
[1728049788123,4.1863,2388.8,2388.4,0.08508289]
[1728049788354,11.49604,2388.9,2388.4,0.08508289]
[1728049788788,3.0,2388.9,2388.5,4.18671]
[1728049788992,4.18534,2389.3,2388.6,0.8253]
[1728049789198,4.18534,2389.3,2388.7,4.18629]
[1728049789199,4.18556,2389.2,2388.7,4.18629]
[1728049789397,4.96387,2389.4,2388.9,4.18593]
[1728049789600,0.7787,2389.7,2389.0,5.01114]
[1728049789787,4.96335,2389.7,2389.1,4.18557]
[1728049790019,4.93731,2390.0,2389.4,4.18507]
[1728049790237,4.83992161,2390.1,2389.5,0.7929]
[1728049790390,4.1841,2390.0,2389.5,0.7929]
[1728049790586,4.1841,2390.0,2389.6,0.0833845]
[1728049791201,4.18436,2389.9,2389.6,0.0833845]
[1728049791544,4.1841,2390.0,2389.6,0.0833845]
[1728049791699,0.48400916,2389.9,2389.6,0.0833845]
[1728049792054,4.66827916,2389.9,2389.6,0.0833845]
[1728049792414,0.48400916,2389.9,2389.6,0.0833845]
[1728049792624,4.66829916,2389.9,2389.6,0.0833845]
[1728049793318,8.85269916,2389.9,2389.6,0.0833845]
[1728049793512,0.88526992,2389.8,2389.6,0.0833845]
[1728049793832,0.88526992,2389.8,2389.5,0.7929]
[1728049794035,0.88526992,2389.8,2389.6,0.08302538]
[1728049794239,4.18429,2389.9,2389.6,0.08302538]
[1728049794425,4.93562,2389.7,2389.6,0.08302538]
[1728049794651,4.93562,2389.7,2388.8,7.18605]
[1728049794652,4.18528,2389.4,2389.0,0.7713]
[1728049795064,4.18528,2389.4,2389.1,0.08373448]
[1728049795550,4.18499,2389.5,2389.1,0.08373448]
[1728049795759,4.18482,2389.6,2389.1,4.26936448]
[1728049795924,4.18463,2389.7,2389.1,0.58780093]
[1728049796274,3.65599161,2390.1,2389.6,4.18472]
[1728049796573,3.65599161,2390.1,2389.6,0.7555]
[1728049796574,0.65599161,2390.1,2389.6,0.7555]
[1728049796724,2.61301555,2390.7,2390.0,4.1841]
[1728049796725,1.18988692,2390.7,2390.0,4.1841]
[1728049796924,0.43788692,2390.7,2390.1,0.8004]
[1728049797154,0.65606106,2390.2,2390.1,0.88270669]
[1728049797340,4.18345,2390.4,2390.1,0.88270669]
[1728049797539,0.836669,2390.3,2390.1,0.88270669]
[1728049797764,4.18324,2390.5,2390.1,0.88270669]
[1728049798884,4.1834,2390.4,2390.1,0.08230669]
[1728049799188,4.18358,2390.3,2390.1,0.08230669]
[1728049799387,4.18378,2390.2,2389.8,0.8117]
[1728049799570,0.418358,2390.2,2389.8,0.8117]
[1728049799888,4.602138,2390.2,2389.8,0.8117]
[1728049801045,0.418358,2390.2,2389.8,0.8117]
[1728049801248,4.18464,2389.7,2389.5,0.8288]
[1728049801497,4.18464,2389.7,2389.2,4.18542]
[1728049801498,0.836917,2389.7,2389.2,4.18542]
[1728049801787,5.021537,2389.7,2389.2,4.18542]
[1728049802141,5.021537,2389.7,2389.1,0.8288]
[1728049802142,4.185,2389.5,2389.1,0.8288]
[1728049802307,4.18524,2389.4,2388.9,4.1859]
[1728049802590,4.18524,2389.4,2388.0,7.46]
[1728049802591,4.18593,2389.0,2388.6,0.8288]
[1728049802756,4.18566,2389.2,2388.6,5.01532]
[1728049802956,1.32227065,2389.1,2388.6,0.8288]
[1728049803163,4.18547,2389.3,2388.7,4.18627]
[1728049803164,4.18544,2389.3,2388.7,4.18627]
[1728049803343,4.97049,2389.4,2388.6,0.8288]
[1728049803548,4.1848,2389.6,2389.0,4.18573]
[1728049803788,4.1848,2389.6,2389.1,0.76]
[1728049804171,7.18457,2389.8,2389.1,0.76]
[1728049804500,4.980897,2389.8,2389.2,4.18537]
[1728049804648,9.14748,2390.0,2389.3,4.18523]
[1728049805010,7.18435,2389.9,2389.4,0.0832853]
[1728049805196,4.18471,2389.7,2389.4,0.0832853]
[1728049805482,4.1846,2389.8,2389.2,4.18547]
[1728049805794,4.1846,2389.8,2389.3,4.18532]
[1728049806012,0.43785302,2389.7,2389.3,4.26874679]
[1728049806688,0.43785302,2389.7,2389.5,4.1849]
[1728049806889,0.43785302,2389.7,2389.6,4.9617]
[1728049807101,4.83914895,2390.6,2390.0,4.18395]
[1728049807287,4.83914895,2390.6,2389.9,4.18427]
[1728049807288,0.65596895,2390.6,2390.2,4.18365]
[1728049807469,0.43785304,2390.3,2390.2,4.18375]
[1728049807709,0.43785304,2390.3,2390.2,8.85843752]
[1728049808014,6.35607949,2391.2,2390.5,4.18322]
[1728049808223,4.18233,2391.1,2390.5,4.18322]
[1728049808377,4.18271,2390.8,2390.3,4.18351]
[1728049808721,4.18271,2390.8,2390.2,0.8297]
[1728049808902,0.418271,2390.7,2390.2,5.01343]
[1728049809101,0.418271,2390.7,2390.2,0.8297]
[1728049809653,0.418271,2390.7,2390.3,4.18354]
[1728049809775,4.18288,2390.7,2390.2,0.8297]
[1728049810876,4.18288,2390.7,2390.2,5.01334]
[1728049811077,4.1827,2390.8,2390.2,5.01334]
[1728049811400,4.18246,2391.0,2390.3,4.18355]
[1728049811713,4.18246,2391.0,2390.4,4.18329]
[1728049812019,4.18246,2391.0,2390.2,0.8297]
[1728049812020,0.836477,2391.0,2390.2,0.8297]
[1728049812175,4.18306,2390.6,2390.2,0.8297]
[1728049812578,4.18306,2390.6,2389.9,4.96389]
[1728049813106,4.1834,2390.4,2389.9,4.96389]
[1728049813451,4.18363,2390.3,2389.9,0.7797]
[1728049813584,0.836703,2390.2,2389.9,0.7797]
[1728049813791,9.03479645,2390.5,2390.0,4.18409]
[1728049813970,4.18391,2390.2,2389.6,4.98898]
[1728049814176,4.18391,2390.2,2390.1,0.08229519]
[1728049814370,4.85157645,2390.5,2389.6,0.8043]
[1728049814576,4.18333,2390.5,2390.0,4.18401]
[1728049814775,0.418333,2390.5,2389.8,4.18444]
[1728049815035,4.18375,2390.2,2390.1,0.08229519]
[1728049815312,4.1844,2389.9,2389.3,4.18532]
[1728049815523,4.1841,2390.0,2389.5,4.18484]
[1728049815687,4.18393,2390.1,2389.6,4.1847]
[1728049815888,3.0,2390.4,2389.9,4.18414]
[1728049816217,4.18365,2390.3,2389.8,4.18442]
[1728049816400,4.97993,2390.6,2389.9,4.99398]
[1728049816590,7.85157645,2390.8,2389.9,4.99398]
[1728049816591,4.18343,2390.4,2389.9,4.99398]
[1728049816792,3.0,2390.6,2389.9,4.99394]
[1728049817019,4.18338,2390.5,2389.9,9.1781]
[1728049817256,4.18338,2390.5,2389.9,4.99394]
[1728049817459,4.1834,2390.4,2389.9,4.99394]
[1728049817657,4.1834,2390.4,2389.9,9.17813]
[1728049818175,4.1834,2390.4,2389.9,4.99394]
[1728049818460,4.18357,2390.3,2389.9,0.8098]
[1728049818820,0.49685577,2390.4,2389.9,4.99399]
[1728049819019,4.18332,2390.5,2390.0,4.18402]
[1728049819220,4.18332,2390.5,2389.9,4.99399]
[1728049819459,4.1835,2390.4,2389.9,4.99399]
[1728049819965,4.18368,2390.3,2390.0,0.08232958]
[1728049820290,0.78515765,2390.6,2390.2,4.18374]
[1728049820566,0.78515765,2390.6,2390.0,4.26632958]
[1728049820567,4.18331,2390.5,2390.0,0.08232958]
[1728049820773,4.18306,2390.6,2390.3,0.08190539]
[1728049820999,4.18306,2390.6,2390.2,4.18372]
[1728049821134,4.18272,2390.8,2390.4,0.08176402]
[1728049821329,5.018957,2391.0,2390.4,0.7964]
[1728049821551,4.18226,2391.1,2390.6,4.18303]
[1728049821976,4.18237,2391.0,2390.7,0.08133997]
[1728049822149,4.18261,2390.9,2390.7,0.08133997]
[1728049822470,4.18261,2390.9,2390.8,0.08119864]
[1728049822974,4.18261,2390.9,2390.4,9.16302]
[1728049823174,4.18261,2390.9,2390.8,0.08119864]
[1728049823385,0.43789107,2390.8,2390.4,0.7964]
[1728049823730,4.62075107,2390.8,2390.4,0.7964]
[1728049824074,4.18288,2390.7,2390.4,0.7964]
[1728049824242,4.18308,2390.6,2390.4,0.7964]
[1728049824448,5.28946752,2390.8,2390.1,4.95253]
[1728049824648,0.69004655,2390.7,2390.3,4.18345]
[1728049824981,0.43789107,2390.8,2390.1,0.7687]
[1728049825186,0.43789107,2390.8,2390.7,4.96117]
[1728049825685,0.43789107,2390.8,2390.7,7.96117]
[1728049825887,4.18104,2391.8,2391.3,5.01119]
[1728049826236,4.18091,2391.9,2391.3,5.01119]
[1728049826437,4.18122,2391.7,2391.3,0.8294]
[1728049826674,4.18122,2391.7,2391.0,8.01173]
[1728049827183,4.18095,2391.8,2391.2,4.18189]
[1728049827386,4.9363,2392.0,2391.4,4.18153]
[1728049827686,4.74132764,2392.0,2391.5,4.99705]
[1728049827976,4.74132764,2392.0,2391.5,0.8156]
[1728049828178,4.18078,2391.9,2391.5,0.8156]
[1728049828344,1.37736041,2391.9,2391.5,0.8156]
[1728049828539,5.55823041,2391.9,2391.5,0.8156]
[1728049829343,8.36101,2392.1,2391.5,4.99698]
[1728049829542,4.18064,2392.0,2391.5,4.99698]
[1728049829783,1.46610936,2392.3,2391.5,0.7655]
[1728049829784,0.65580936,2392.3,2391.5,0.7655]
[1728049829986,0.65580936,2392.3,2392.2,0.7655]
[1728049830591,4.17994,2392.4,2392.2,0.7655]
[1728049830989,4.17994,2392.4,2391.9,4.18076]
[1728049830990,4.18039,2392.2,2391.9,0.7642]
[1728049831154,4.1806,2392.0,2391.9,0.7642]
[1728049831353,4.1813,2391.6,2391.5,0.7651]
[1728049831552,4.1813,2391.6,2390.7,0.4198]
[1728049831553,4.18156,2391.5,2391.1,0.7651]
[1728049831759,4.18191,2391.3,2391.1,0.7651]
[1728049831959,4.182,2391.2,2390.8,0.7651]
[1728049832532,4.18217,2391.1,2390.8,0.7651]
[1728049832882,4.18211,2391.2,2390.8,0.7651]
[1728049833114,4.18235,2391.0,2390.8,0.7651]
[1728049833312,4.18218,2391.1,2390.8,0.7651]
[1728049833625,8.36485,2391.0,2390.8,0.7651]
[1728049833790,4.18236,2391.0,2390.6,0.7804]
[1728049834504,4.18287,2390.7,2390.6,0.7804]
[1728049834824,4.18287,2390.7,2390.2,8.36725]
[1728049834825,4.18293,2390.7,2390.3,0.7853]
[1728049834976,4.18293,2390.7,2390.6,0.13367297]
[1728049835179,4.1831,2390.6,2390.3,0.7853]
[1728049835995,4.1831,2390.6,2389.7,4.18461]
[1728049835996,4.1834,2390.4,2389.7,4.18452]
[1728049836239,4.18376,2390.2,2389.8,0.7531]
[1728049836532,4.18422,2390.0,2389.8,0.7531]
[1728049836878,4.1841,2390.0,2389.4,0.815]
[1728049837080,5.26998645,2390.0,2389.4,0.815]
[1728049837278,4.18497,2389.5,2389.1,2.07851364]
[1728049837796,4.85157645,2389.7,2389.1,2.07851364]
[1728049838128,4.18544,2389.3,2389.1,0.7683]
[1728049838293,4.18526,2389.4,2389.1,0.7683]
[1728049838678,8.37053,2389.4,2389.1,0.7683]
[1728049838905,4.18526,2389.4,2389.1,0.7683]
[1728049839958,4.18524,2389.4,2389.1,0.7683]
[1728049840676,5.022272,2389.4,2388.8,0.8043]
[1728049840820,4.18595,2389.0,2388.4,4.98102]
[1728049841020,0.7595,2389.2,2388.7,4.18625]
[1728049841219,4.18542,2389.3,2388.7,8.37253]
[1728049841416,8.37087,2389.3,2388.7,4.18625]
[1728049841659,4.18551,2389.2,2388.7,4.18625]
[1728049841920,4.18576,2389.1,2388.5,8.37321]
[1728049842123,4.18599,2389.0,2388.5,4.18671]
[1728049843064,4.18615,2388.9,2388.4,3.7942]
[1728049843284,6.30668653,2388.8,2388.2,0.00466628]
[1728049843426,4.18707,2388.3,2388.2,0.00466628]
[1728049843762,4.96677,2388.3,2388.2,0.00466628]
[1728049844269,7.96677,2388.3,2388.2,0.00466628]
[1728049844620,8.51677,2388.3,2388.2,0.00466628]
[1728049844822,10.33983565,2388.3,2388.2,0.00466628]
[1728049845880,10.77800522,2388.3,2388.2,0.00466628]
[1728049848756,4.18929,2387.1,2386.6,4.95113]
[1728049848957,9.71595653,2387.3,2386.6,4.95113]
[1728049849157,4.18918,2387.1,2386.7,0.13536907]
[1728049849338,9.71591653,2387.3,2386.6,4.95112]
[1728049849540,5.16070165,2387.2,2386.8,0.13522506]
[1728049849745,4.18911,2387.2,2386.7,4.32513907]
[1728049849968,4.18922,2387.1,2386.9,0.13508106]
[1728049850172,5.52698653,2387.3,2386.8,0.13522506]
[1728049850467,3.8093,2387.5,2386.3,0.77]
[1728049850468,4.18983,2386.8,2386.3,0.77]
[1728049850668,4.18988,2386.7,2386.2,4.1906]
[1728049850830,4.18988,2386.7,2386.0,0.7588]
[1728049850831,4.689558,2386.7,2386.0,0.7588]
[1728049851028,7.18902,2387.2,2386.3,4.19048]
[1728049851029,3.0,2386.9,2386.3,4.19048]
[1728049851304,3.0,2387.2,2386.0,4.94988]
[1728049851305,3.0,2387.2,2386.2,4.1907]
[1728049851611,4.18918,2387.1,2386.6,9.13869]
[1728049851773,4.99588,2387.3,2386.7,4.18979]
[1728049851976,0.8069,2387.3,2386.8,4.1897]
[1728049852178,4.18885,2387.3,2386.8,4.68455]
[1728049852522,7.1886,2387.5,2386.8,4.68455]
[1728049852523,4.18866,2387.4,2386.9,4.18943]
[1728049852714,7.1886,2387.5,2387.0,4.18928]
[1728049853060,7.1886,2387.5,2386.9,4.18943]
[1728049853264,4.18824,2387.7,2387.1,4.97147]
[1728049853808,4.18823,2387.7,2387.1,4.97147]